bitfinex-derivatives/quotes_ETHF0:USTF0_20250420
["timestamp","ask_amount","ask_price","bid_price","bid_amount"]
[1745158548381,3.2078,1579.2,1579.0,5.8932]
[1745158548676,4.47423,1579.2,1579.1,1.7376]
[1745158549071,6.17743,1579.2,1579.1,1.7376]
[1745158550075,1.26651,1579.1,1579.0,4.28]
[1745158550279,2.96971,1579.1,1579.0,4.28]
[1745158551281,2.96971,1579.1,1579.0,5.9216]
[1745158553582,2.96971,1579.1,1579.0,4.28]
[1745158557082,2.96971,1579.1,1579.0,5.9835]
[1745158557983,6.17751,1579.1,1579.0,5.9835]
[1745158559585,6.17751,1579.1,1579.0,6.0825]
[1745158560993,4.47431,1579.1,1579.0,6.0825]
[1745158561381,4.47431,1579.1,1579.0,7.7393]
[1745158563191,3.2078,1579.1,1579.0,16.23389]
[1745158563396,3.2078,1579.4,1579.2,1.26641]
[1745158563594,1.26635,1579.3,1579.1,3.02586]
[1745158563781,1.26635,1579.3,1579.2,1.7594]
[1745158563986,1.26635,1579.3,1579.2,3.02583]
[1745158564288,4.47412,1579.4,1579.2,5.25383]
[1745158564484,3.2078,1579.4,1579.3,8.33795]
[1745158564690,3.2078,1579.4,1579.3,14.16015]
[1745158564900,3.2078,1579.6,1579.3,12.8938]
[1745158565098,3.2078,1579.6,1579.5,1.26619]
[1745158565990,3.2078,1579.6,1579.4,1.7594]
[1745158566192,3.2078,1579.6,1579.4,3.9874]
[1745158566193,1.26619,1579.5,1579.4,3.9874]
[1745158569699,2.96129,1579.5,1579.4,3.9874]
[1745158570102,2.96129,1579.5,1579.4,1.7594]
[1745158570895,1.6951,1579.5,1579.3,6.9627]
[1745158571204,6.16917,1579.4,1579.3,6.9627]
[1745158571504,6.16917,1579.4,1579.3,4.43]
[1745158571702,1.26635,1579.3,1579.2,1.7294]
[1745158571894,2.92915,1579.3,1579.2,1.7294]
[1745158572096,1.26643,1579.2,1579.1,6.0643]
[1745158572396,1.26651,1579.1,1579.0,4.456]
[1745158572603,2.14211,1579.1,1579.0,6.2218]
[1745158573101,2.14211,1579.1,1579.0,8.4498]
[1745158573307,4.076,1579.2,1579.1,1.26651]
[1745158573498,3.2078,1579.2,1579.1,3.4082]
[1745158573799,3.2078,1579.2,1579.1,4.67471]
[1745158574002,3.2078,1579.2,1579.1,3.4082]
[1745158574203,1.759,1579.5,1579.1,8.4082]
[1745158574204,0.8682,1579.5,1579.1,8.4082]
[1745158574410,6.13677,1579.6,1579.4,1.26626]
[1745158574600,6.13677,1579.6,1579.5,1.7658]
[1745158575305,3.2078,1579.6,1579.5,1.7658]
[1745158575495,4.47391,1579.6,1579.5,2.5857]
[1745158576197,4.47391,1579.6,1579.5,4.8137]
[1745158577596,4.47391,1579.6,1579.5,3.9938]
[1745158578097,4.47391,1579.6,1579.5,1.7658]
[1745158580503,1.26619,1579.5,1579.4,7.7292]
[1745158580699,3.80829,1579.5,1579.4,8.659]
[1745158580904,4.68579,1579.5,1579.4,6.1264]
[1745158582196,4.68579,1579.5,1579.4,8.3544]
[1745158584507,4.68579,1579.5,1579.4,6.585]
[1745158585207,1.26627,1579.4,1579.3,4.1432]
[1745158585406,6.12397,1579.4,1579.3,4.1432]
[1745158585704,6.12397,1579.4,1579.3,2.5327]
[1745158586500,11.12397,1579.4,1579.3,2.5327]
[1745158587206,1.26651,1579.1,1579.0,18.66262333]
[1745158588009,4.72271,1579.1,1579.0,18.66262333]
[1745158588208,4.72271,1579.1,1579.0,20.89062333]
[1745158589312,4.72271,1579.1,1579.0,19.28012333]
[1745158590207,4.72271,1579.1,1579.0,17.05212333]
[1745158590414,4.72271,1579.1,1579.0,4.455]
[1745158594813,4.72271,1579.1,1579.0,6.1423]
[1745158595214,4.72271,1579.1,1579.0,8.3703]
[1745158596204,4.47427,1579.2,1579.0,8.3703]
[1745158596418,4.47427,1579.2,1579.1,2.4458]
[1745158597016,3.2078,1579.2,1579.1,8.71231]
[1745158597608,3.2078,1579.2,1579.1,3.71231]
[1745158597814,1.7816,1579.5,1579.1,8.71231]
[1745158598017,4.4741,1579.4,1579.2,2.90448]
[1745158598315,4.4741,1579.4,1579.3,6.8369]
[1745158600911,3.2078,1579.4,1579.3,8.10325]
[1745158601324,4.47407,1579.4,1579.3,6.8369]
[1745158602012,3.2078,1579.4,1579.3,6.8369]
[1745158602514,3.2078,1579.4,1579.3,8.10325]
[1745158604724,4.47407,1579.4,1579.3,6.8369]
[1745158605022,4.47407,1579.4,1579.3,8.10325]
[1745158605321,3.2078,1579.4,1579.3,8.10325]
[1745158612326,4.8178,1579.6,1579.5,1.26619]
[1745158612732,6.08391,1579.6,1579.5,1.6334]
[1745158614132,6.08391,1579.6,1579.5,3.8614]
[1745158614431,4.47391,1579.6,1579.5,3.8614]
[1745158615034,3.2078,1579.6,1579.5,7.65999]
[1745158615421,3.2078,1579.6,1579.5,6.3938]
[1745158615625,3.2078,1579.6,1579.5,7.65999]
[1745158616826,3.2078,1579.6,1579.5,6.3938]
[1745158617034,4.47391,1579.6,1579.5,6.3938]
[1745158617234,4.47391,1579.6,1579.5,4.1658]
[1745158617433,3.2078,1579.6,1579.5,5.43199]
[1745158619228,3.2078,1579.6,1579.5,7.65999]
[1745158621639,4.0211,1579.6,1579.5,7.65999]
[1745158621832,6.4909,1579.6,1579.5,6.3938]
[1745158622349,6.4909,1579.6,1579.5,7.65999]
[1745158622836,6.4909,1579.6,1579.5,6.3938]
[1745158623037,6.4909,1579.6,1579.5,7.65999]
[1745158623440,3.2078,1579.6,1579.5,7.65999]
[1745158626830,4.8378,1579.6,1579.5,6.3938]
[1745158627029,4.8378,1579.6,1579.5,7.65999]
[1745158630429,3.16452,1580.0,1579.5,7.65999]
[1745158630430,4.60567,1580.2,1580.0,1.26573]
[1745158630643,1.707,1580.1,1580.0,1.26573]
[1745158630940,1.39787,1580.2,1580.1,1.26571]
[1745158631137,1.39787,1580.2,1580.1,2.11661]
[1745158633642,3.5091,1580.2,1580.0,11.00253]
[1745158633847,1.6045,1580.1,1580.0,11.00253]
[1745158634230,1.6045,1580.1,1580.0,9.7368]
[1745158634437,1.6045,1580.1,1580.0,11.00259]
[1745158634643,4.3953,1580.2,1580.1,1.26571]
[1745158634644,3.12967,1580.2,1580.1,1.26571]
[1745158634839,1.39787,1580.2,1580.1,1.26571]
[1745158635137,1.39787,1580.2,1580.1,2.97181]
[1745158636243,1.39787,1580.2,1580.1,1.26571]
[1745158638137,3.12147,1580.2,1580.1,1.26571]
[1745158638645,1.39787,1580.2,1580.1,1.26571]
[1745158639144,0.8456,1580.4,1580.3,1.26555]
[1745158639344,0.8456,1580.4,1580.3,5.52355]
[1745158639542,1.6723,1580.5,1580.4,1.26547]
[1745158639849,1.6723,1580.5,1580.4,4.47327]
[1745158640148,1.7168,1580.6,1580.5,1.26539]
[1745158641148,1.7168,1580.6,1580.5,3.49339]
[1745158641346,3.2078,1581.0,1580.5,2.228]
[1745158641347,4.47283,1581.0,1580.5,2.228]
[1745158641539,3.4514,1580.9,1580.7,1.26519]
[1745158641843,1.7288,1580.8,1580.6,5.52327]
[1745158642036,2.99397,1580.8,1580.6,4.258]
[1745158642446,1.7288,1580.7,1580.6,4.258]
[1745158644450,1.7288,1580.7,1580.6,5.52331]
[1745158647251,1.7288,1580.7,1580.6,7.24671]
[1745158647451,1.7288,1580.7,1580.6,5.9814]
[1745158647951,1.7288,1580.7,1580.6,4.258]
[1745158648152,2.99403,1580.7,1580.6,4.258]
[1745158648545,2.99403,1580.7,1580.6,1.26521]
[1745158648546,6.7288,1580.7,1580.6,1.26521]
[1745158648855,7.99403,1580.7,1580.6,1.26521]
[1745158650051,10.22203,1580.7,1580.6,1.26521]
[1745158650856,10.22203,1580.7,1580.5,4.256]
[1745158650857,1.26531,1580.6,1580.5,4.256]
[1745158651053,7.85241,1580.6,1580.5,4.256]
[1745158651351,7.85241,1580.6,1580.3,0.00949638]
[1745158651352,1.26547,1580.4,1580.3,0.00949638]
[1745158651559,4.47327,1580.4,1580.3,4.26549638]
[1745158654760,1.26547,1580.4,1580.3,4.26549638]
[1745158654954,4.47327,1580.4,1580.3,4.26549638]
[1745158656461,3.2078,1580.4,1580.3,5.53104638]
[1745158656661,3.2078,1580.4,1580.3,7.17404638]
[1745158656861,3.2078,1580.4,1580.3,12.17404638]
[1745158657060,2.93693,1580.6,1580.4,1.26542]
[1745158657261,2.93693,1580.6,1580.4,3.01022]
[1745158657755,2.93693,1580.6,1580.5,1.7448]
[1745158658674,1.6716,1580.6,1580.3,4.26549638]
[1745158658878,1.26547,1580.4,1580.3,4.26549638]
[1745158659178,2.92404,1580.5,1580.3,6.01029638]
[1745158659375,1.26547,1580.4,1580.3,6.01029638]
[1745158659575,2.92407,1580.4,1580.3,6.01029638]
[1745158659980,1.6586,1580.4,1580.3,6.01029638]
[1745158661380,1.26545,1580.5,1580.3,7.27584638]
[1745158661680,2.95305,1580.5,1580.4,1.6604]
[1745158662280,2.95305,1580.5,1580.4,3.8884]
[1745158662782,1.6876,1580.5,1580.4,3.8884]
[1745158663280,4.8794,1580.6,1580.4,5.15387]
[1745158663477,4.8794,1580.6,1580.5,1.6958]
[1745158663676,6.14471,1580.6,1580.5,1.6958]
[1745158665375,4.8794,1580.6,1580.5,1.6958]
[1745158665575,4.0363,1580.6,1580.5,2.96119]
[1745158666073,3.2078,1580.6,1580.5,2.96119]
[1745158667279,3.2078,1580.6,1580.5,1.6958]
[1745158667586,4.47311,1580.6,1580.4,1.26547]
[1745158667881,1.26539,1580.5,1580.3,8.73879638]
[1745158668081,3.88339,1580.5,1580.3,10.44609638]
[1745158670386,3.88339,1580.5,1580.3,5.97279638]
[1745158670680,1.6583,1580.4,1580.3,5.97279638]
[1745158670980,2.92377,1580.4,1580.3,5.97279638]
[1745158671178,6.13157,1580.4,1580.3,4.26549638]
[1745158673175,6.13157,1580.4,1580.3,0.00949638]
[1745158675373,1.26555,1580.3,1580.2,2.5313]
[1745158675681,2.4803,1580.3,1579.8,12.2621702]
[1745158675984,1.2658,1580.0,1579.9,5.9826]
[1745158676186,1.2658,1580.0,1579.9,8.2106]
[1745158676384,2.9197,1580.0,1579.9,8.2106]
[1745158677183,2.9197,1580.0,1579.9,4.249]
[1745158677387,3.7592,1580.0,1579.9,4.249]
[1745158678380,1.26587,1579.9,1579.8,8.4085702]
[1745158678585,6.88667,1579.9,1579.8,8.4085702]
[1745158679292,1.26595,1579.8,1579.7,6.7811]
[1745158679483,2.87205,1579.8,1579.7,6.7811]
[1745158680291,2.87205,1579.8,1579.7,8.4809]
[1745158681584,2.87205,1579.8,1579.7,6.7811]
[1745158682586,2.87205,1579.8,1579.7,4.249]
[1745158686595,1.26603,1579.7,1579.6,4.1681]
[1745158686793,3.82473,1579.7,1579.6,4.1681]
[1745158689289,7.03253,1579.7,1579.6,4.1681]
[1745158689595,7.03253,1579.7,1579.6,1.6359]
[1745158691799,4.47383,1579.7,1579.6,1.6359]
[1745158691998,1.26603,1579.7,1579.6,1.6359]
[1745158692299,9.1158,1580.2,1579.9,1.26585]
[1745158692497,1.26575,1580.1,1580.0,1.7252]
[1745158692697,1.26575,1580.1,1580.0,3.4105]
[1745158693090,1.26575,1580.1,1580.0,5.6385]
[1745158693800,2.95355,1580.1,1580.0,5.6385]
[1745158696795,3.2078,1580.2,1580.0,5.6385]
[1745158696993,4.47343,1580.2,1580.1,1.6991]
[1745158697196,3.2078,1580.2,1580.1,2.96481]
[1745158697689,1.26553,1580.4,1580.2,1.26563]
[1745158697894,1.26553,1580.4,1580.3,6.7644]
[1745158698193,1.26553,1580.4,1580.3,7.6122]
[1745158703398,1.26553,1580.4,1580.3,4.211]
[1745158703600,3.01603,1580.4,1580.3,4.211]
[1745158703799,3.01603,1580.4,1580.3,5.95]
[1745158704611,3.01603,1580.4,1580.3,4.211]
[1745158706508,1.26563,1580.2,1580.1,5.949]
[1745158708101,3.87633,1580.2,1580.1,5.949]
[1745158708611,2.15023,1580.2,1580.1,5.949]
[1745158709212,1.26563,1580.2,1580.1,5.949]
[1745158710911,2.97323,1580.2,1580.1,5.949]
[1745158712613,1.26563,1580.2,1580.1,5.949]
[1745158713815,3.01303,1580.2,1580.1,5.949]
[1745158714518,3.01303,1580.2,1580.1,4.21]
[1745158719112,6.22083,1580.2,1580.1,4.21]
[1745158719417,1.26579,1580.0,1579.9,9.71356]
[1745158719618,1.26579,1580.0,1579.9,8.00766]
[1745158719812,1.26579,1580.0,1579.9,6.7418]
[1745158720208,2.12937,1580.1,1579.9,10.23562]
[1745158720412,1.26577,1580.1,1579.9,10.23562]
[1745158721520,1.26577,1580.1,1580.0,1.26579]
[1745158721721,1.26571,1580.1,1580.0,1.26579]
[1745158721920,1.26571,1580.1,1579.9,10.23562]
[1745158722923,4.47348,1580.2,1580.0,1.26579]
[1745158723120,4.47348,1580.2,1580.1,0.8222]
[1745158723320,4.47348,1580.2,1580.1,1.6632]
[1745158727027,4.47348,1580.2,1580.1,4.1946]
[1745158730435,4.47348,1580.2,1580.1,2.5314]
[1745158730924,6.15618,1580.2,1580.1,2.5314]
[1745158732833,6.15618,1580.2,1580.1,6.7124]
[1745158735235,0.8636,1580.3,1580.1,7.97811]
[1745158735539,2.1292,1580.3,1580.1,7.97807]
[1745158736040,1.26563,1580.2,1580.1,7.97811]
[1745158736237,1.26563,1580.2,1580.1,6.7124]
[1745158736539,4.47343,1580.2,1580.1,6.7124]
[1745158736839,7.08923,1580.2,1580.1,6.7124]
[1745158737142,7.08923,1580.2,1580.1,8.4285]
[1745158737638,7.08923,1580.2,1580.1,6.7124]
[1745158740842,7.08923,1580.2,1580.1,2.5314]
[1745158741243,7.08923,1580.2,1580.1,4.1698]
[1745158741631,5.36063,1580.2,1580.1,4.1698]
[1745158742039,2.15283,1580.2,1580.1,4.1698]
[1745158742243,1.26563,1580.2,1580.1,5.43551]
[1745158742743,1.26563,1580.2,1580.1,4.1698]
[1745158743042,1.26563,1580.2,1580.1,5.43549]
[1745158743247,1.26563,1580.2,1580.1,4.1698]
[1745158744145,2.12921,1580.3,1580.1,5.43547]
[1745158744347,2.12921,1580.3,1580.2,6.6351]
[1745158744841,7.04232,1580.4,1580.2,7.90073]
[1745158745050,5.33962,1580.4,1580.3,1.6403]
[1745158745241,5.33962,1580.4,1580.3,2.491]
[1745158746344,3.2078,1580.4,1580.3,3.75655]
[1745158746547,4.47327,1580.4,1580.3,2.491]
[1745158746935,4.47327,1580.4,1580.3,1.6403]
[1745158747132,6.99967,1580.4,1580.3,1.6403]
[1745158747338,1.26555,1580.3,1580.2,6.409]
[1745158747638,3.83775,1580.3,1580.2,8.183]
[1745158748247,3.83775,1580.3,1580.2,5.955]
[1745158749442,3.83775,1580.3,1580.2,14.3635702]
[1745158750744,3.83775,1580.3,1580.2,16.8948702]
[1745158752354,2.15555,1580.3,1580.2,18.1605002]
[1745158752559,4.47332,1580.4,1580.2,18.1605002]
[1745158752756,3.2078,1580.4,1580.3,2.91125]
[1745158755754,3.2078,1580.4,1580.3,1.6457]
[1745158756055,4.47327,1580.4,1580.3,2.91125]
[1745158756247,4.47327,1580.4,1580.3,1.6457]
[1745158756758,4.47327,1580.4,1580.3,2.91125]
[1745158756957,4.47327,1580.4,1580.3,32.79073685]
[1745158757557,3.2078,1580.4,1580.3,34.05628685]
[1745158759549,4.47327,1580.4,1580.3,32.79073685]
[1745158759752,7.88607,1580.4,1580.3,32.79073685]
[1745158759952,3.2078,1580.4,1580.3,34.05628685]
[1745158760455,3.2078,1580.4,1580.3,21.45916352]
[1745158763359,4.47327,1580.4,1580.3,20.19361352]
[1745158763561,7.88617,1580.4,1580.3,20.19361352]
[1745158763953,7.88617,1580.4,1580.3,10.0542702]
[1745158764255,7.88617,1580.4,1580.3,8.4085702]
[1745158764463,3.4129,1580.4,1580.3,8.4085702]
[1745158764760,4.67837,1580.4,1580.3,8.4085702]
[1745158766165,1.26555,1580.3,1580.2,6.7023]
[1745158766458,2.96355,1580.3,1580.2,6.7023]
[1745158769262,2.96355,1580.3,1580.2,2.5313]
[1745158770865,7.96355,1580.3,1580.2,2.5313]
[1745158771859,1.26571,1580.1,1580.0,12.5795702]
[1745158772054,1.26571,1580.1,1580.0,8.4085702]
[1745158772263,6.26571,1580.1,1580.0,0.94120019]
[1745158772456,1.26579,1580.0,1579.9,7.34165333]
[1745158772764,1.26587,1579.9,1579.8,15.98109007]
[1745158772957,1.26587,1579.9,1579.7,10.87638545]
[1745158772958,1.26595,1579.8,1579.7,10.87638545]
[1745158773158,10.87275,1579.8,1579.7,9.02102545]
[1745158773353,15.87275,1579.8,1579.7,5.81395545]
[1745158773563,15.87275,1579.8,1579.7,4.01836545]
[1745158774365,15.87275,1579.8,1579.7,2.38601545]
[1745158774666,15.87275,1579.8,1579.7,0.79002545]
[1745158774859,16.37278783,1579.8,1579.7,5.45e-06]
[1745158775053,15.87275,1579.8,1579.7,5.45e-06]
[1745158775856,17.54155,1579.8,1579.7,5.45e-06]
[1745158776164,15.31355,1579.8,1579.7,5.45e-06]
[1745158776763,21.22155,1579.8,1579.7,5.45e-06]
[1745158777265,23.44955,1579.8,1579.7,5.45e-06]
[1745158778565,1.26603,1579.7,1579.6,1.3349]
[1745158778762,12.60978,1579.8,1579.6,3.091]
[1745158778958,12.60978,1579.8,1579.7,0.8106]
[1745158779153,10.38178,1579.8,1579.7,2.5029]
[1745158782063,5.908,1579.8,1579.7,3.76893]
[1745158782268,1.26593,1579.9,1579.7,3.76893]
[1745158782461,1.26593,1579.9,1579.8,1.7303]
[1745158788471,4.47365,1580.0,1579.8,2.99625]
[1745158788673,3.2078,1580.0,1579.9,0.8068]
[1745158788869,3.2078,1580.0,1579.9,2.4871]
[1745158789374,4.47359,1580.0,1579.9,2.4871]
[1745158797180,6.70159,1580.0,1579.9,2.4871]
[1745158798179,4.47359,1580.0,1579.9,2.4871]
[1745158798878,1.26587,1579.9,1579.8,1.3356]
[1745158799081,1.26587,1579.9,1579.8,3.9239]
[1745158800783,1.26587,1579.9,1579.8,2.5883]
[1745158816587,6.24103,1580.0,1579.8,2.5883]
[1745158816793,4.47359,1580.0,1579.9,1.6553]
[1745158818293,6.10509,1580.0,1579.9,1.6553]
[1745158819196,8.33309,1580.0,1579.9,1.6553]
[1745158820583,8.33309,1580.0,1579.7,3.7653]
[1745158820584,1.26595,1579.8,1579.7,3.7653]
[1745158820787,4.47375,1579.8,1579.7,3.7653]
[1745158821094,4.47375,1579.8,1579.7,2.4294]
[1745158821296,6.17715,1579.8,1579.7,2.4294]
[1745158821695,1.26611,1579.6,1579.5,0.8281]
[1745158821895,1.26611,1579.6,1579.5,3.4414]
[1745158832602,2.92651,1579.6,1579.5,3.4414]
[1745158834517,1.26619,1579.5,1579.4,1.3371]
[1745158834815,6.20929,1579.5,1579.4,1.3371]
[1745158835020,1.26627,1579.4,1579.3,1.762]
[1745158835716,3.00157,1579.4,1579.3,1.762]
[1745158838115,3.00157,1579.4,1579.3,3.0998]
[1745158840922,1.26627,1579.4,1579.3,3.0998]
[1745158842027,7.17425,1579.5,1579.3,4.36615]
[1745158842231,7.17425,1579.5,1579.4,1.7466]
[1745158843922,1.26625,1579.5,1579.4,1.7466]
[1745158851434,5.48282977,1579.7,1579.5,1.26617]
[1745158851632,5.48282977,1579.7,1579.6,9.7939]
[1745158852327,1.27552638,1579.7,1579.6,9.7939]
[1745158852534,0.00949638,1579.7,1579.6,9.7939]
[1745158852731,1.27552638,1579.7,1579.6,9.7939]
[1745158853029,1.26627,1579.4,1579.3,1.3378]
[1745158853235,6.70207,1579.4,1579.3,1.3378]
[1745158853729,6.70207,1579.4,1579.3,3.0417]
[1745158854136,4.47407,1579.4,1579.3,3.0417]
[1745158855230,6.70207,1579.4,1579.3,3.0417]
[1745158856232,4.47407,1579.4,1579.3,3.0417]
[1745158859936,4.47407,1579.4,1579.3,12.1507]
[1745158859937,3.2078,1579.4,1579.3,12.1507]
[1745158860543,1.8709,1579.4,1579.3,13.41705]
[1745158860937,7.41510339,1579.6,1579.3,12.1507]
[1745158861141,7.41510339,1579.6,1579.5,1.26619]
[1745158861344,7.41510339,1579.6,1579.5,6.26619]
[1745158861641,4.20730339,1579.6,1579.5,7.14189]
[1745158861840,5.47341339,1579.6,1579.5,5.8757]
[1745158862043,5.47341339,1579.6,1579.5,7.6354]
[1745158862232,8.68121339,1579.6,1579.5,6.7434]
[1745158862744,8.68121339,1579.6,1579.5,11.7434]
[1745158863042,8.68121339,1579.6,1579.5,6.7434]
[1745158864141,4.47391,1579.6,1579.5,6.7434]
[1745158865447,3.1655,1579.5,1579.1,12.62518997]
[1745158865643,3.13623,1579.2,1579.1,11.28179997]
[1745158865940,4.40266,1579.2,1579.1,7.99709997]
[1745158866244,11.63066,1579.2,1579.1,7.99709997]
[1745158866444,6.63066,1579.2,1579.1,7.99709997]
[1745158869346,1.26651,1579.1,1579.0,1.7356]
[1745158869638,2.97301,1579.1,1579.0,1.7356]
[1745158872337,6.18081,1579.1,1579.0,1.7356]
[1745158873951,4.47431,1579.1,1579.0,1.7356]
[1745158878142,4.47431,1579.1,1579.0,6.0216]
[1745158881848,6.15201,1579.1,1579.0,6.0216]
[1745158885159,4.47431,1579.1,1579.0,6.0216]
[1745158886059,4.47431,1579.1,1579.0,1.7356]
[1745158891771,6.96991,1579.1,1579.0,1.7356]
[1745158892565,6.96991,1579.1,1579.0,0.099]
[1745158893271,1.26683,1578.7,1578.6,5.9982]
[1745158893469,1.26683,1578.7,1578.6,6.79723972]
[1745158894574,1.26683,1578.7,1578.6,7.63343972]
[1745158896164,1.26683,1578.7,1578.6,2.53913972]
[1745158899267,3.2078,1578.6,1578.0,12.73622489]
[1745158899471,1.26764,1577.7,1577.6,5.62391419]
[1745158899666,1.26764,1577.7,1577.6,7.26231419]
[1745158899667,4.47544,1577.7,1577.6,7.26231419]
[1745158900079,3.2078,1577.7,1577.6,7.26231419]
[1745158900378,4.47544,1577.7,1577.6,7.26231419]
[1745158900772,4.47544,1577.7,1577.6,1.6384]
[1745158912085,1.26772,1577.6,1577.5,2.228]
[1745158912280,1.26812,1577.1,1577.0,0.8818]
[1745158912583,3.2078,1577.1,1577.0,0.8818]
[1745158912780,4.47592,1577.1,1577.0,5.8818]
[1745158913078,3.2078,1577.1,1577.0,5.8818]
[1745158913283,4.47592,1577.1,1577.0,8.1098]
[1745158913984,4.47592,1577.1,1577.0,3.1098]
[1745158915174,4.47592,1577.1,1577.0,4.8235]
[1745158922478,3.2078,1577.1,1577.0,6.0917]
[1745158923478,3.2078,1577.1,1577.0,4.8235]
[1745158923479,4.47592,1577.1,1577.0,4.8235]
[1745158923987,3.2078,1577.1,1577.0,6.0917]
[1745158924789,4.47577,1577.3,1577.2,1.26804]
[1745158925087,1.26804,1577.2,1577.1,1.7362]
[1745158925288,4.47582,1577.3,1577.1,3.00428]
[1745158925584,4.47584,1577.3,1577.1,3.00428]
[1745158925782,4.47584,1577.3,1577.2,1.7142]
[1745158926184,4.47584,1577.3,1577.2,3.9422]
[1745158926389,4.47584,1577.3,1577.2,8.5192]
[1745158928176,3.2078,1577.3,1577.2,9.78724]
[1745158928383,3.2078,1577.5,1577.2,8.5192]
[1745158928591,3.2078,1577.5,1577.4,1.26788]
[1745158928979,3.2078,1577.5,1577.4,2.98448]
[1745158929181,3.2078,1577.5,1577.4,5.21248]
[1745158929786,4.4756,1577.5,1577.4,3.9446]
[1745158929984,3.2078,1577.5,1577.4,3.9446]
[1745158930177,4.4756,1577.5,1577.4,3.9446]
[1745158930591,3.2078,1577.5,1577.4,5.21248]
[1745158930892,11.37737,1577.5,1576.7,96.57]
[1745158931085,4.476,1577.0,1576.9,0.8214]
[1745158932191,4.476,1577.0,1576.9,4.7572]
[1745158933092,4.476,1577.0,1576.9,2.5292]
[1745158934285,4.476,1577.0,1576.9,4.7572]
[1745158935086,4.476,1577.0,1576.9,2.5292]
[1745158936093,4.476,1577.0,1576.9,4.7572]
[1745158936688,3.2078,1577.0,1576.9,4.7572]
[1745158937192,4.476,1577.0,1576.9,4.7572]
[1745158937395,3.2078,1577.0,1576.9,4.7572]
[1745158937599,4.476,1577.0,1576.9,4.7572]
[1745158941188,3.2078,1577.0,1576.9,6.02548]
[1745158941386,4.476,1577.0,1576.9,4.7572]
[1745158941592,4.476,1577.0,1576.9,6.02548]
[1745158941994,4.476,1577.0,1576.9,4.7572]
[1745158943199,3.2078,1577.0,1576.9,6.02548]
[1745158943697,3.2078,1577.0,1576.9,6.89668]
[1745158944996,3.2078,1577.4,1577.3,1.26796]
[1745158945185,4.47572,1577.4,1577.3,4.538]
[1745158945498,4.47568,1577.4,1577.3,4.538]
[1745158945696,4.47568,1577.4,1577.3,7.9564]
[1745158946397,8.68298339,1577.4,1577.3,7.9564]
[1745158949908,4.47568,1577.4,1577.3,7.9564]
[1745158950198,4.47568,1577.4,1577.3,7.1286]
[1745158950493,5.96308,1577.4,1577.3,7.1286]
[1745158951492,4.47568,1577.4,1577.3,7.1286]
[1745158953598,4.47568,1577.4,1577.3,7.9464]
[1745158961699,3.2078,1577.4,1577.3,9.21436]
[1745158961899,4.20730339,1577.5,1577.4,1.26788]
[1745158962105,8.68290339,1577.5,1577.4,2.91688]
[1745158963002,8.68290339,1577.5,1577.4,1.649]
[1745158963207,8.68290339,1577.5,1577.4,3.877]
[1745158965810,10.17040339,1577.5,1577.4,3.877]
[1745158966111,10.17040339,1577.5,1577.4,1.649]
[1745158966614,5.9631,1577.5,1577.4,1.649]
[1745158970716,3.2078,1577.5,1577.4,2.91688]
[1745158971114,5.47502339,1577.6,1577.5,1.2678]
[1745158971319,4.20730339,1577.6,1577.5,2.9773]
[1745158971715,5.47502339,1577.6,1577.5,2.9773]
[1745158972324,4.20730339,1577.6,1577.5,5.2053]
[1745158972522,5.47502339,1577.6,1577.5,5.2053]
[1745158972724,5.47502339,1577.6,1577.5,3.9375]
[1745158975023,1.26772,1577.6,1577.5,3.9375]
[1745158976522,1.26772,1577.6,1577.5,5.2053]
[1745158976719,1.26772,1577.6,1577.5,3.9375]
[1745158978125,1.26772,1577.6,1577.5,5.2053]
[1745158978425,4.4755,1577.7,1577.5,5.2053]
[1745158978627,4.4755,1577.7,1577.6,7.7131]
[1745158985031,3.2078,1577.7,1577.6,8.98082]
[1745158985930,4.47544,1577.7,1577.6,7.7131]
[1745158986132,4.47544,1577.7,1577.6,8.98082]
[1745158986331,4.47544,1577.7,1577.6,7.7131]
[1745158989033,3.2078,1577.7,1577.6,7.7131]
[1745158989333,4.47544,1577.7,1577.6,7.7131]
[1745158992439,8.68274339,1577.7,1577.6,7.7131]
[1745158992939,5.47494339,1577.7,1577.6,7.7131]
[1745158993141,8.68274339,1577.7,1577.6,7.7131]
[1745158994039,5.47494339,1577.7,1577.6,7.7131]
[1745158994240,8.68274339,1577.7,1577.6,7.7131]
[1745158995539,8.68274339,1577.7,1577.6,6.909]
[1745158995739,11.00374339,1577.7,1577.6,6.909]
[1745158998846,8.68274339,1577.7,1577.6,6.909]
[1745158999444,9.49112467,1577.7,1577.6,6.909]
[1745159005050,11.61097045,1577.7,1577.6,6.909]
[1745159005946,11.61097045,1577.7,1577.1,3.2078]
[1745159005947,1.26796,1577.3,1577.1,1.26805]
[1745159006144,1.26796,1577.3,1577.2,6.0419]
[1745159007248,1.26796,1577.3,1577.2,9.0965]
[1745159007445,2.75556,1577.3,1577.2,9.0965]
[1745159007647,3.56626,1577.3,1577.2,9.0965]
[1745159008248,3.56626,1577.3,1577.2,6.8685]
[1745159009241,3.56626,1577.3,1577.2,4.7625]
[1745159010239,3.56626,1577.3,1577.2,2.5345]
[1745159012151,6.77406,1577.3,1577.2,2.5345]
[1745159012450,5.96336,1577.3,1577.2,1.6966]
[1745159012649,4.47576,1577.3,1577.2,1.6966]
[1745159014151,3.2078,1577.3,1577.2,2.96464]
[1745159014365,12.91184889,1577.5,1577.3,1.26796]
[1745159014548,12.91184889,1577.5,1577.4,0.834]